[Event "Titled Tuesday Blitz January 10 Late 2023"]
[White "Danielyan, Vahe"]
[Black "Pakleza, Zbigniew"]
[WhiteFideId "13304828"]
[BlackFideId "1119290"]
[WhiteElo "2346"]
[BlackElo "2494"]
[Result "1-0"]
[Round "03"]
[TimeControl "180+2"]
[Date "2023.01.10"]
[WhiteClock "0:00:36"]
[BlackClock "0:00:02"]

1. e4 {[%clk 0:00:00]}  d6 {[%clk 0:00:00]} 2. d4 {[%clk 0:03:00]}  Nf6 {[%clk 0:02:59]} 3. Nc3 {[%clk 0:03:00]}  c6 {[%clk 0:03:00]} 4. Nf3 {[%clk 0:03:00]}  Bg4 {[%clk 0:03:00]} 5. Be2 {[%clk 0:02:58]}  e6 {[%clk 0:03:00]} 6. O-O {[%clk 0:02:58]}  d5 {[%clk 0:03:00]} 7. e5 {[%clk 0:02:57]}  Nfd7 {[%clk 0:03:01]} 8. h3 {[%clk 0:02:57]}  Bxf3 {[%clk 0:03:01]} 9. Bxf3 {[%clk 0:02:57]}  c5 {[%clk 0:03:01]} 10. Re1 {[%clk 0:02:58]}  Be7 {[%clk 0:03:02]} 11. Nb5 {[%clk 0:02:50]}  cxd4 {[%clk 0:02:57]} 12. Nxd4 {[%clk 0:02:42]}  Nc6 {[%clk 0:02:54]} 13. Bf4 {[%clk 0:02:39]}  Qb6 {[%clk 0:02:50]} 14. Nxc6 {[%clk 0:02:37]}  bxc6 {[%clk 0:02:46]} 15. b3 {[%clk 0:02:37]}  O-O {[%clk 0:02:47]} 16. c4 {[%clk 0:02:35]}  a5 {[%clk 0:02:27]} 17. Rc1 {[%clk 0:02:35]}  a4 {[%clk 0:02:18]} 18. Be3 {[%clk 0:02:32]}  Qa5 {[%clk 0:02:13]} 19. Bd4 {[%clk 0:02:31]}  Rfb8 {[%clk 0:01:44]} 20. Re3 {[%clk 0:02:30]}  axb3 {[%clk 0:01:39]} 21. axb3 {[%clk 0:02:28]}  Bc5 {[%clk 0:01:36]} 22. Be2 {[%clk 0:02:29]}  Bxd4 {[%clk 0:01:30]} 23. Qxd4 {[%clk 0:02:27]}  c5 {[%clk 0:01:05]} 24. Qf4 {[%clk 0:02:28]}  d4 {[%clk 0:01:05]} 25. Rg3 {[%clk 0:02:28]}  Nf8 {[%clk 0:01:02]} 26. h4 {[%clk 0:02:26]}  Qd8 {[%clk 0:00:50]} 27. h5 {[%clk 0:02:22]}  Nd7 {[%clk 0:00:38]} 28. Bd3 {[%clk 0:02:21]}  Ra3 {[%clk 0:00:16]} 29. Rb1 {[%clk 0:02:19]}  Qe7 {[%clk 0:00:10]} 30. Qg4 {[%clk 0:02:16]}  Qf8 {[%clk 0:00:05]} 31. Qe4 {[%clk 0:02:12]}  g6 {[%clk 0:00:02]} 32. Bc2 {[%clk 0:02:10]}  Qg7 {[%clk 0:00:02]} 33. Re1 {[%clk 0:02:01]}  Ra2 {[%clk 0:00:02]} 34. hxg6 {[%clk 0:01:59]}  fxg6 {[%clk 0:00:01]} 35. Bd3 {[%clk 0:01:47]}  Rb2 {[%clk 0:00:02]} 36. Qc6 {[%clk 0:01:48]}  Nf8 {[%clk 0:00:02]} 37. Qxc5 {[%clk 0:01:48]}  R2xb3 {[%clk 0:00:02]} 38. Qxd4 {[%clk 0:01:41]}  Qe7 {[%clk 0:00:02]} 39. c5 {[%clk 0:01:42]}  Rd8 {[%clk 0:00:03]} 40. Qc4 {[%clk 0:01:39]}  Rb2 {[%clk 0:00:02]} 41. c6 {[%clk 0:01:37]}  Rc8 {[%clk 0:00:03]} 42. Be4 {[%clk 0:01:35]}  Qa7 {[%clk 0:00:03]} 43. Rf3 {[%clk 0:01:30]}  Rb6 {[%clk 0:00:04]} 44. Qc5 {[%clk 0:01:26]}  Qc7 {[%clk 0:00:03]} 45. Rd1 {[%clk 0:01:22]}  Rbb8 {[%clk 0:00:04]} 46. Kh2 {[%clk 0:01:20]}  Qg7 {[%clk 0:00:04]} 47. Rf6 {[%clk 0:01:16]}  Rc7 {[%clk 0:00:04]} 48. Rd3 {[%clk 0:01:08]}  Rbc8 {[%clk 0:00:04]} 49. Rdf3 {[%clk 0:01:04]}  Re7 {[%clk 0:00:04]} 50. Qd6 {[%clk 0:01:03]}  Rec7 {[%clk 0:00:03]} 51. Rxf8+ {[%clk 0:00:54]}  Rxf8 {[%clk 0:00:03]} 52. Rxf8+ {[%clk 0:00:53]}  Qxf8 {[%clk 0:00:04]} 53. Qxc7 {[%clk 0:00:53]}  Qh6+ {[%clk 0:00:05]} 54. Kg3 {[%clk 0:00:52]}  Qg5+ {[%clk 0:00:06]} 55. Kf3 {[%clk 0:00:49]}  Qh5+ {[%clk 0:00:06]} 56. Ke3 {[%clk 0:00:49]}  Qg5+ {[%clk 0:00:06]} 57. Kd3 {[%clk 0:00:50]}  Qc1 {[%clk 0:00:06]} 58. Qd6 {[%clk 0:00:49]}  Kg7 {[%clk 0:00:05]} 59. c7 {[%clk 0:00:45]}  Qd1+ {[%clk 0:00:06]} 60. Ke3 {[%clk 0:00:45]}  Qc1+ {[%clk 0:00:06]} 61. Kf3 {[%clk 0:00:45]}  Qc3+ {[%clk 0:00:05]} 62. Kf4 {[%clk 0:00:45]}  Qc1+ {[%clk 0:00:05]} 63. Kg3 {[%clk 0:00:37]}  Qg5+ {[%clk 0:00:03]} 64. Kf3 {[%clk 0:00:37]}  Qh5+ {[%clk 0:00:04]} 65. Ke3 {[%clk 0:00:37]}  Qg5+ {[%clk 0:00:04]} 66. Kd3 {[%clk 0:00:36]}  Qc1 {[%clk 0:00:04]} 67. Qd7+ {[%clk 0:00:37]}  Kh6 {[%clk 0:00:03]} 68. c8=Q {[%clk 0:00:36]}  Qd1+ {[%clk 0:00:04]} 69. Kc4 {[%clk 0:00:37]}  Qe2+ {[%clk 0:00:03]} 70. Kc5 {[%clk 0:00:37]}  Qxe4 {[%clk 0:00:02]} 71. Qd2+ {[%clk 0:00:36]} 1-0


[Site "https://www.chess.com"]

[Event "Titled Tuesday Blitz January 10 Late 2023"]
[White "Kozin, Yuri"]
[Black "Kazakouski, Valery"]
[WhiteFideId "4129920"]
[BlackFideId "13507443"]
[WhiteElo "2251"]
[BlackElo "2539"]
[Result "0-1"]
[Round "03"]
[TimeControl "180+2"]
[Date "2023.01.10"]
[WhiteClock "0:00:08"]
[BlackClock "0:00:52"]

1. e4 {[%clk 0:00:00]}  c5 {[%clk 0:00:00]} 2. Nf3 {[%clk 0:03:00]}  a6 {[%clk 0:02:59]} 3. Nc3 {[%clk 0:03:00]}  e6 {[%clk 0:03:00]} 4. d4 {[%clk 0:03:00]}  b5 {[%clk 0:02:59]} 5. a3 {[%clk 0:03:00]}  cxd4 {[%clk 0:02:59]} 6. Nxd4 {[%clk 0:02:54]}  Bb7 {[%clk 0:02:59]} 7. Bd3 {[%clk 0:02:53]}  d6 {[%clk 0:03:00]} 8. f4 {[%clk 0:02:52]}  Nd7 {[%clk 0:02:58]} 9. Be3 {[%clk 0:02:52]}  Ngf6 {[%clk 0:02:58]} 10. Qf3 {[%clk 0:02:50]}  Qc7 {[%clk 0:02:58]} 11. O-O-O {[%clk 0:02:50]}  Be7 {[%clk 0:02:57]} 12. g4 {[%clk 0:02:48]}  g5 {[%clk 0:02:57]} 13. f5 {[%clk 0:02:48]}  e5 {[%clk 0:02:54]} 14. Nde2 {[%clk 0:02:35]}  h5 {[%clk 0:02:53]} 15. h3 {[%clk 0:02:22]}  Nc5 {[%clk 0:02:47]} 16. Kb1 {[%clk 0:02:14]}  Nxd3 {[%clk 0:01:53]} 17. cxd3 {[%clk 0:02:02]}  Bc6 {[%clk 0:01:42]} 18. Bxg5 {[%clk 0:02:01]}  a5 {[%clk 0:01:36]} 19. Rc1 {[%clk 0:01:55]}  Qb7 {[%clk 0:01:23]} 20. Bxf6 {[%clk 0:01:47]}  Bxf6 {[%clk 0:01:22]} 21. Nd5 {[%clk 0:01:19]}  Bg5 {[%clk 0:01:22]} 22. Rc2 {[%clk 0:01:19]}  b4 {[%clk 0:01:20]} 23. h4 {[%clk 0:01:01]}  hxg4 {[%clk 0:01:19]} 24. Qxg4 {[%clk 0:00:43]}  Bxd5 {[%clk 0:01:18]} 25. exd5 {[%clk 0:00:35]}  Bf6 {[%clk 0:01:17]} 26. Qe4 {[%clk 0:00:16]}  bxa3 {[%clk 0:01:16]} 27. Nc3 {[%clk 0:00:15]}  a4 {[%clk 0:01:16]} 28. Ka2 {[%clk 0:00:14]}  Qb3+ {[%clk 0:01:04]} 29. Kb1 {[%clk 0:00:11]}  Rc8 {[%clk 0:01:04]} 30. Qxa4+ {[%clk 0:00:11]}  Qxa4 {[%clk 0:00:52]} 31. Nxa4 {[%clk 0:00:08]}  a2+ {[%clk 0:00:52]} 0-1


[Site "https://www.chess.com"]

[Event "Titled Tuesday Blitz January 10 Late 2023"]
[White "Putnam, Liam"]
[Black "Martinez Reyes, Pedro Ramon"]
[WhiteFideId "30938279"]
[BlackFideId "3901807"]
[WhiteElo "2285"]
[BlackElo "2376"]
[Result "1-0"]
[Round "03"]
[TimeControl "180+2"]
[Date "2023.01.10"]
[WhiteClock "0:00:27"]
[BlackClock "0:00:58"]

1. b3 {[%clk 0:00:00]}  Nf6 {[%clk 0:00:00]} 2. Bb2 {[%clk 0:03:00]}  g6 {[%clk 0:02:57]} 3. Bxf6 {[%clk 0:03:01]}  exf6 {[%clk 0:02:57]} 4. c4 {[%clk 0:02:59]}  d5 {[%clk 0:02:57]} 5. cxd5 {[%clk 0:03:00]}  Qxd5 {[%clk 0:02:56]} 6. Nc3 {[%clk 0:02:59]}  Qa5 {[%clk 0:02:57]} 7. e3 {[%clk 0:03:00]}  Ba3 {[%clk 0:02:57]} 8. Qc2 {[%clk 0:02:54]}  O-O {[%clk 0:02:50]} 9. Nf3 {[%clk 0:02:41]}  Nc6 {[%clk 0:02:45]} 10. Bc4 {[%clk 0:02:39]}  Bf5 {[%clk 0:02:45]} 11. e4 {[%clk 0:02:32]}  Bg4 {[%clk 0:02:40]} 12. Nd5 {[%clk 0:02:16]}  Bxf3 {[%clk 0:02:31]} 13. gxf3 {[%clk 0:02:16]}  Nd4 {[%clk 0:02:24]} 14. Qd3 {[%clk 0:02:12]}  c5 {[%clk 0:01:59]} 15. Nxf6+ {[%clk 0:01:44]}  Kg7 {[%clk 0:01:59]} 16. e5 {[%clk 0:01:35]}  Rad8 {[%clk 0:01:59]} 17. Qe4 {[%clk 0:01:23]}  b5 {[%clk 0:01:53]} 18. Bd5 {[%clk 0:01:14]}  Bb4 {[%clk 0:01:34]} 19. O-O {[%clk 0:01:02]}  Bxd2 {[%clk 0:01:26]} 20. a4 {[%clk 0:00:50]}  Bg5 {[%clk 0:01:25]} 21. axb5 {[%clk 0:00:33]}  Qc7 {[%clk 0:01:16]} 22. f4 {[%clk 0:00:30]}  Bxf6 {[%clk 0:01:16]} 23. exf6+ {[%clk 0:00:25]}  Kxf6 {[%clk 0:01:14]} 24. Rxa7 {[%clk 0:00:26]}  Qd6 {[%clk 0:01:13]} 25. Ra6 {[%clk 0:00:25]}  Kg7 {[%clk 0:01:11]} 26. Rxd6 {[%clk 0:00:25]}  Rxd6 {[%clk 0:00:57]} 27. Qe5+ {[%clk 0:00:25]}  Rf6 {[%clk 0:00:58]} 28. b6 {[%clk 0:00:26]}  Rb8 {[%clk 0:00:58]} 29. Qxb8 {[%clk 0:00:27]} 1-0


[Site "https://www.chess.com"]

[Event "Titled Tuesday Blitz January 10 Late 2023"]
[White "Mikaelyan, Arman"]
[Black "Ozates, Tuna"]
[WhiteFideId "13304852"]
[BlackFideId "6354521"]
[WhiteElo "2523"]
[BlackElo "2251"]
[Result "1/2-1/2"]
[Round "03"]
[TimeControl "180+2"]
[Date "2023.01.10"]
[WhiteClock "0:00:01"]
[BlackClock "0:00:11"]

1. d4 {[%clk 0:00:00]}  Nf6 {[%clk 0:00:00]} 2. Nf3 {[%clk 0:03:00]}  d5 {[%clk 0:02:59]} 3. Bf4 {[%clk 0:03:00]}  c5 {[%clk 0:02:58]} 4. e3 {[%clk 0:03:00]}  Nc6 {[%clk 0:02:59]} 5. Nbd2 {[%clk 0:03:00]}  cxd4 {[%clk 0:02:59]} 6. exd4 {[%clk 0:03:01]}  Bg4 {[%clk 0:02:58]} 7. c3 {[%clk 0:03:02]}  e6 {[%clk 0:02:58]} 8. Qb3 {[%clk 0:03:00]}  Bd6 {[%clk 0:02:59]} 9. Bxd6 {[%clk 0:03:00]}  Qxd6 {[%clk 0:02:59]} 10. Bd3 {[%clk 0:02:48]}  O-O {[%clk 0:02:58]} 11. O-O {[%clk 0:02:48]}  a6 {[%clk 0:02:57]} 12. Rae1 {[%clk 0:02:49]}  b5 {[%clk 0:02:56]} 13. Ne5 {[%clk 0:02:48]}  Bh5 {[%clk 0:02:54]} 14. f4 {[%clk 0:02:45]}  Bg6 {[%clk 0:02:54]} 15. Nxg6 {[%clk 0:02:41]}  hxg6 {[%clk 0:02:53]} 16. Nf3 {[%clk 0:02:37]}  Na5 {[%clk 0:02:52]} 17. Qd1 {[%clk 0:02:36]}  Nc4 {[%clk 0:02:51]} 18. Qe2 {[%clk 0:02:35]}  Rab8 {[%clk 0:02:48]} 19. Ne5 {[%clk 0:02:33]}  Rfc8 {[%clk 0:02:31]} 20. Rf3 {[%clk 0:02:32]}  b4 {[%clk 0:02:31]} 21. Nxc4 {[%clk 0:02:26]}  dxc4 {[%clk 0:02:14]} 22. Bxc4 {[%clk 0:02:05]}  bxc3 {[%clk 0:02:14]} 23. bxc3 {[%clk 0:02:06]}  a5 {[%clk 0:02:11]} 24. Bb3 {[%clk 0:02:07]}  Qc6 {[%clk 0:02:05]} 25. Qd1 {[%clk 0:01:57]}  Ra8 {[%clk 0:02:02]} 26. Ba4 {[%clk 0:00:49]}  Qd5 {[%clk 0:01:40]} 27. Qb3 {[%clk 0:00:44]}  Rab8 {[%clk 0:01:26]} 28. Qxd5 {[%clk 0:00:41]}  Nxd5 {[%clk 0:01:22]} 29. Rc1 {[%clk 0:00:35]}  Rb2 {[%clk 0:01:23]} 30. Bb3 {[%clk 0:00:34]}  Nb6 {[%clk 0:01:20]} 31. Rf2 {[%clk 0:00:32]}  Rxf2 {[%clk 0:01:13]} 32. Kxf2 {[%clk 0:00:27]}  a4 {[%clk 0:01:12]} 33. Bd1 {[%clk 0:00:28]}  a3 {[%clk 0:01:12]} 34. Bb3 {[%clk 0:00:28]}  Nd5 {[%clk 0:01:10]} 35. Bxd5 {[%clk 0:00:27]}  exd5 {[%clk 0:01:03]} 36. Ke3 {[%clk 0:00:21]}  Rb8 {[%clk 0:01:02]} 37. Kd3 {[%clk 0:00:21]}  Rb2 {[%clk 0:01:02]} 38. Rc2 {[%clk 0:00:20]}  Rb1 {[%clk 0:01:01]} 39. Re2 {[%clk 0:00:21]}  f6 {[%clk 0:01:01]} 40. h3 {[%clk 0:00:20]}  Kf7 {[%clk 0:01:00]} 41. Kc2 {[%clk 0:00:18]}  Rb2+ {[%clk 0:01:00]} 42. Kd3 {[%clk 0:00:18]}  Rb1 {[%clk 0:01:00]} 43. c4 {[%clk 0:00:18]}  Rd1+ {[%clk 0:01:00]} 44. Kc3 {[%clk 0:00:15]}  Rc1+ {[%clk 0:00:58]} 45. Rc2 {[%clk 0:00:14]}  Rf1 {[%clk 0:00:57]} 46. c5 {[%clk 0:00:13]}  Ke7 {[%clk 0:00:44]} 47. Kb4 {[%clk 0:00:11]}  Rxf4 {[%clk 0:00:44]} 48. Kb5 {[%clk 0:00:06]}  Rxd4 {[%clk 0:00:44]} 49. Kb6 {[%clk 0:00:06]}  Kd8 {[%clk 0:00:44]} 50. Re2 {[%clk 0:00:04]}  Re4 {[%clk 0:00:44]} 51. Rd2 {[%clk 0:00:03]}  d4 {[%clk 0:00:44]} 52. Rd3 {[%clk 0:00:03]}  f5 {[%clk 0:00:41]} 53. Rxa3 {[%clk 0:00:03]}  Re1 {[%clk 0:00:37]} 54. Ra8+ {[%clk 0:00:03]}  Ke7 {[%clk 0:00:37]} 55. c6 {[%clk 0:00:03]}  d3 {[%clk 0:00:37]} 56. c7 {[%clk 0:00:04]}  Rb1+ {[%clk 0:00:36]} 57. Ka5 {[%clk 0:00:04]}  Rc1 {[%clk 0:00:35]} 58. Rd8 {[%clk 0:00:03]}  Rxc7 {[%clk 0:00:34]} 59. Rxd3 {[%clk 0:00:03]}  Rc2 {[%clk 0:00:34]} 60. a4 {[%clk 0:00:04]}  Rxg2 {[%clk 0:00:34]} 61. Rb3 {[%clk 0:00:04]}  f4 {[%clk 0:00:35]} 62. Kb4 {[%clk 0:00:05]}  Rg3 {[%clk 0:00:34]} 63. Rb1 {[%clk 0:00:05]}  Rxh3 {[%clk 0:00:34]} 64. a5 {[%clk 0:00:05]}  g5 {[%clk 0:00:34]} 65. a6 {[%clk 0:00:05]}  Rh8 {[%clk 0:00:34]} 66. Kc5 {[%clk 0:00:06]}  Kf6 {[%clk 0:00:32]} 67. a7 {[%clk 0:00:05]}  Ra8 {[%clk 0:00:30]} 68. Rb7 {[%clk 0:00:04]}  Ke5 {[%clk 0:00:29]} 69. Rxg7 {[%clk 0:00:03]}  Kf5 {[%clk 0:00:20]} 70. Kb6 {[%clk 0:00:01]}  f3 {[%clk 0:00:19]} 71. Kb7 {[%clk 0:00:01]}  Rxa7+ {[%clk 0:00:19]} 72. Kxa7 {[%clk 0:00:01]}  g4 {[%clk 0:00:19]} 73. Kb6 {[%clk 0:00:02]}  Kf4 {[%clk 0:00:19]} 74. Kc5 {[%clk 0:00:02]}  f2 {[%clk 0:00:19]} 75. Kd4 {[%clk 0:00:02]}  g3 {[%clk 0:00:19]} 76. Rf7+ {[%clk 0:00:03]}  Kg4 {[%clk 0:00:19]} 77. Ke3 {[%clk 0:00:02]}  Kh3 {[%clk 0:00:19]} 78. Ke2 {[%clk 0:00:03]}  Kg2 {[%clk 0:00:18]} 79. Rf3 {[%clk 0:00:03]}  Kh2 {[%clk 0:00:18]} 80. Rf4 {[%clk 0:00:03]}  g2 {[%clk 0:00:18]} 81. Rxf2 {[%clk 0:00:03]}  Kg3 {[%clk 0:00:12]} 82. Rf3+ {[%clk 0:00:02]}  Kh2 {[%clk 0:00:10]} 83. Rf2 {[%clk 0:00:02]}  Kh1 {[%clk 0:00:11]} 84. Rxg2 {[%clk 0:00:01]}  Kxg2 {[%clk 0:00:11]} 1/2-1/2


[Site "https://www.chess.com"]

[Event "Titled Tuesday Blitz January 10 Late 2023"]
[White "Khandelwal, Ankush"]
[Black "Tan, Zhongyi"]
[WhiteFideId "413470"]
[BlackFideId "8603642"]
[WhiteElo "2205"]
[BlackElo "2517"]
[Result "0-1"]
[Round "03"]
[TimeControl "180+2"]
[Date "2023.01.10"]
[WhiteClock "0:00:06"]
[BlackClock "0:00:29"]

1. e4 {[%clk 0:00:00]}  e5 {[%clk 0:00:00]} 2. Nf3 {[%clk 0:03:00]}  Nc6 {[%clk 0:02:57]} 3. d4 {[%clk 0:03:00]}  exd4 {[%clk 0:02:58]} 4. Nxd4 {[%clk 0:03:00]}  Nf6 {[%clk 0:02:56]} 5. Nxc6 {[%clk 0:03:00]}  bxc6 {[%clk 0:02:56]} 6. e5 {[%clk 0:03:00]}  Qe7 {[%clk 0:02:57]} 7. Qe2 {[%clk 0:03:00]}  Nd5 {[%clk 0:02:57]} 8. g3 {[%clk 0:03:01]}  a5 {[%clk 0:02:57]} 9. c4 {[%clk 0:03:01]}  Nb6 {[%clk 0:02:50]} 10. Bg2 {[%clk 0:03:01]}  a4 {[%clk 0:02:48]} 11. O-O {[%clk 0:02:54]}  Qe6 {[%clk 0:02:44]} 12. Nd2 {[%clk 0:02:50]}  Bb4 {[%clk 0:02:36]} 13. f4 {[%clk 0:02:35]}  Bxd2 {[%clk 0:02:35]} 14. Bxd2 {[%clk 0:02:12]}  Qxc4 {[%clk 0:02:24]} 15. Qf2 {[%clk 0:02:13]}  Ba6 {[%clk 0:02:23]} 16. f5 {[%clk 0:02:13]}  O-O-O {[%clk 0:02:11]} 17. Rfe1 {[%clk 0:02:10]}  Qb5 {[%clk 0:01:57]} 18. b3 {[%clk 0:01:45]}  Bb7 {[%clk 0:01:42]} 19. bxa4 {[%clk 0:01:40]}  Qxa4 {[%clk 0:01:37]} 20. Re4 {[%clk 0:01:38]}  Qa3 {[%clk 0:01:36]} 21. Bb4 {[%clk 0:01:37]}  Qa8 {[%clk 0:01:23]} 22. Bc5 {[%clk 0:01:04]}  Na4 {[%clk 0:01:22]} 23. Rb1 {[%clk 0:00:58]}  Nc3 {[%clk 0:01:11]} 24. Reb4 {[%clk 0:00:51]}  Nxb1 {[%clk 0:01:00]} 25. Rxb1 {[%clk 0:00:18]}  Rhe8 {[%clk 0:00:59]} 26. Qd4 {[%clk 0:00:19]}  f6 {[%clk 0:00:56]} 27. exf6 {[%clk 0:00:16]}  gxf6 {[%clk 0:00:44]} 28. a4 {[%clk 0:00:16]}  Qa5 {[%clk 0:00:44]} 29. Bb4 {[%clk 0:00:16]}  Qb6 {[%clk 0:00:39]} 30. Qxb6 {[%clk 0:00:15]}  cxb6 {[%clk 0:00:39]} 31. Bd6 {[%clk 0:00:10]}  Re2 {[%clk 0:00:39]} 32. Rxb6 {[%clk 0:00:10]}  Ra2 {[%clk 0:00:30]} 33. Rb4 {[%clk 0:00:10]}  Re8 {[%clk 0:00:30]} 34. Bf1 {[%clk 0:00:07]}  Re1 {[%clk 0:00:30]} 35. Rf4 {[%clk 0:00:06]}  Ba6 {[%clk 0:00:29]} 0-1


[Site "https://www.chess.com"]

[Event "Titled Tuesday Blitz January 10 Late 2023"]
[White "Bambino Filho, Antonio Carlos"]
[Black "Djordjevic, Vuk"]
[WhiteFideId "2113163"]
[BlackFideId "902098"]
[WhiteElo "2144"]
[BlackElo "2375"]
[Result "0-1"]
[Round "03"]
[TimeControl "180+2"]
[Date "2023.01.10"]
[WhiteClock "0:00:19"]
[BlackClock "0:00:44"]

1. d4 {[%clk 0:00:00]}  Nf6 {[%clk 0:00:00]} 2. c4 {[%clk 0:02:56]}  e6 {[%clk 0:02:59]} 3. Nc3 {[%clk 0:02:56]}  Bb4 {[%clk 0:02:59]} 4. Qc2 {[%clk 0:02:57]}  O-O {[%clk 0:02:59]} 5. a3 {[%clk 0:02:57]}  Bxc3+ {[%clk 0:02:58]} 6. Qxc3 {[%clk 0:02:58]}  Ne4 {[%clk 0:02:58]} 7. Qc2 {[%clk 0:02:59]}  f5 {[%clk 0:02:59]} 8. Nf3 {[%clk 0:02:53]}  b6 {[%clk 0:02:59]} 9. e3 {[%clk 0:02:54]}  Bb7 {[%clk 0:02:58]} 10. Be2 {[%clk 0:02:54]}  d6 {[%clk 0:02:58]} 11. O-O {[%clk 0:02:54]}  Nd7 {[%clk 0:02:58]} 12. b4 {[%clk 0:02:55]}  a5 {[%clk 0:02:58]} 13. Bb2 {[%clk 0:02:55]}  Rf6 {[%clk 0:02:57]} 14. d5 {[%clk 0:02:55]}  Rh6 {[%clk 0:02:51]} 15. dxe6 {[%clk 0:02:47]}  Nf8 {[%clk 0:02:33]} 16. Nd4 {[%clk 0:02:45]}  Qh4 {[%clk 0:02:31]} 17. h3 {[%clk 0:02:44]}  Qg5 {[%clk 0:02:05]} 18. Nf3 {[%clk 0:02:43]}  Qg6 {[%clk 0:02:06]} 19. Kh2 {[%clk 0:02:15]}  Nxe6 {[%clk 0:01:53]} 20. Bd3 {[%clk 0:01:54]}  Rf8 {[%clk 0:01:52]} 21. Rg1 {[%clk 0:01:16]}  Qh5 {[%clk 0:01:26]} 22. Qe2 {[%clk 0:01:09]}  f4 {[%clk 0:01:04]} 23. Nd4 {[%clk 0:01:00]}  Qxe2 {[%clk 0:00:56]} 24. Bxe2 {[%clk 0:00:44]}  Nxf2 {[%clk 0:00:52]} 25. exf4 {[%clk 0:00:37]}  Nxf4 {[%clk 0:00:52]} 26. Bf3 {[%clk 0:00:25]}  Bxf3 {[%clk 0:00:46]} 27. Nxf3 {[%clk 0:00:20]}  N2xh3 {[%clk 0:00:45]} 28. Kg3 {[%clk 0:00:21]}  Ne2+ {[%clk 0:00:44]} 29. Kg4 {[%clk 0:00:19]}  Rf4# {[%clk 0:00:44]} 0-1


[Site "https://www.chess.com"]

[Event "Titled Tuesday Blitz January 10 Late 2023"]
[White "Bazeev, German"]
[Black "Herman, Daniel"]
[WhiteFideId "24119350"]
[BlackFideId "30935008"]
[WhiteElo "2369"]
[BlackElo "1956"]
[Result "1-0"]
[Round "03"]
[TimeControl "180+2"]
[Date "2023.01.10"]
[WhiteClock "0:00:25"]
[BlackClock "0:00:08"]

1. c4 {[%clk 0:00:00]}  e5 {[%clk 0:00:00]} 2. Nc3 {[%clk 0:02:42]}  Bb4 {[%clk 0:02:59]} 3. Nf3 {[%clk 0:02:42]}  Nc6 {[%clk 0:02:58]} 4. Nd5 {[%clk 0:02:41]}  Be7 {[%clk 0:02:53]} 5. d3 {[%clk 0:02:39]}  f5 {[%clk 0:02:50]} 6. g3 {[%clk 0:02:37]}  Nf6 {[%clk 0:02:43]} 7. Bg2 {[%clk 0:02:30]}  d6 {[%clk 0:02:42]} 8. O-O {[%clk 0:02:27]}  O-O {[%clk 0:02:38]} 9. Rb1 {[%clk 0:02:26]}  Nxd5 {[%clk 0:02:34]} 10. cxd5 {[%clk 0:02:15]}  Nb8 {[%clk 0:02:30]} 11. Bd2 {[%clk 0:02:15]}  Nd7 {[%clk 0:02:31]} 12. Rc1 {[%clk 0:02:09]}  a5 {[%clk 0:02:30]} 13. Qc2 {[%clk 0:02:07]}  Nc5 {[%clk 0:02:09]} 14. d4 {[%clk 0:02:01]}  exd4 {[%clk 0:02:09]} 15. Nxd4 {[%clk 0:02:01]}  Bf6 {[%clk 0:01:58]} 16. Bc3 {[%clk 0:02:02]}  Ne4 {[%clk 0:01:46]} 17. e3 {[%clk 0:01:55]}  Bd7 {[%clk 0:01:39]} 18. Rfd1 {[%clk 0:01:50]}  c5 {[%clk 0:01:27]} 19. dxc6 {[%clk 0:01:20]}  bxc6 {[%clk 0:01:17]} 20. a4 {[%clk 0:01:19]}  d5 {[%clk 0:01:17]} 21. Be1 {[%clk 0:01:10]}  Rc8 {[%clk 0:01:12]} 22. Nb3 {[%clk 0:01:09]}  Rb8 {[%clk 0:01:07]} 23. Bxa5 {[%clk 0:01:07]}  Qe7 {[%clk 0:00:57]} 24. Bc3 {[%clk 0:00:57]}  Nxc3 {[%clk 0:00:56]} 25. bxc3 {[%clk 0:00:56]}  Qa3 {[%clk 0:00:49]} 26. Nd4 {[%clk 0:00:56]}  Rb2 {[%clk 0:00:41]} 27. Qd3 {[%clk 0:00:50]}  g6 {[%clk 0:00:32]} 28. c4 {[%clk 0:00:50]}  Qxd3 {[%clk 0:00:30]} 29. Rxd3 {[%clk 0:00:46]}  dxc4 {[%clk 0:00:15]} 30. Rdd1 {[%clk 0:00:47]}  Ra8 {[%clk 0:00:14]} 31. Rxc4 {[%clk 0:00:40]}  Ra2 {[%clk 0:00:13]} 32. Bxc6 {[%clk 0:00:39]}  Bxc6 {[%clk 0:00:11]} 33. Nxc6 {[%clk 0:00:37]}  R8xa4 {[%clk 0:00:11]} 34. Rxa4 {[%clk 0:00:35]}  Rxa4 {[%clk 0:00:10]} 35. Rd7 {[%clk 0:00:36]}  Rc4 {[%clk 0:00:10]} 36. Nd4 {[%clk 0:00:35]}  Bxd4 {[%clk 0:00:09]} 37. exd4 {[%clk 0:00:26]}  Rc2 {[%clk 0:00:08]} 38. h4 {[%clk 0:00:27]}  Rd2 {[%clk 0:00:08]} 39. Kf1 {[%clk 0:00:26]}  h6 {[%clk 0:00:09]} 40. Ke1 {[%clk 0:00:25]}  g5 {[%clk 0:00:08]} 41. Kxd2 {[%clk 0:00:25]} 1-0


[Site "https://www.chess.com"]